bitfinex/quotes_ETHUSD_20250112
["timestamp","ask_amount","ask_price","bid_price","bid_amount"]
[1736678990195,0.13080772,3248.3,3247.8,0.7853]
[1736678990565,0.5575,3248.4,3247.6,0.8313]
[1736678990878,0.13080772,3248.3,3247.7,0.62013]
[1736678991744,0.5575,3248.4,3247.7,0.62013]
[1736678992150,0.13076773,3248.3,3247.7,0.62013]
[1736678992594,0.5575,3248.4,3247.7,0.62013]
[1736678993111,0.13073088,3248.3,3247.7,0.62013]
[1736678993288,0.5575,3248.2,3247.8,0.660684]
[1736678993456,0.55,3248.0,3247.7,0.62013]
[1736678993790,0.13069946,3247.9,3247.7,0.62013]
[1736678994653,0.13069946,3247.9,3247.7,0.64947502]
[1736678995112,0.13069946,3247.9,3247.7,0.62013]
[1736678995252,0.13069946,3247.9,3247.8,0.445143]
[1736678997788,0.7775,3248.4,3247.8,2.600443]
[1736678997955,0.7775,3248.4,3247.9,0.02933677]
[1736678998155,0.13073088,3248.3,3247.9,0.02933677]
[1736678998395,0.13073088,3248.3,3247.9,0.86063688]
[1736678998702,0.0075,3248.7,3248.2,0.7549]
[1736678998996,0.13066307,3248.6,3248.2,0.7549]
[1736678999295,0.13066307,3248.6,3248.3,0.02933047]
[1736678999752,0.13066307,3248.6,3248.2,0.7549]
[1736678999952,0.0075,3248.8,3248.2,0.7549]
[1736679000264,0.7641,3248.3,3248.0,3.39049593]
[1736679000511,0.7641,3248.3,3248.0,0.39049593]
[1736679001175,0.7641,3248.3,3248.0,0.41983444]
[1736679001899,0.5575,3248.5,3248.0,0.39049593]
[1736679002298,0.13064587,3248.4,3248.0,0.39049593]
[1736679002463,0.55,3248.3,3248.0,0.39049593]
[1736679002797,0.5575,3248.5,3248.0,0.39049593]
[1736679002979,0.5575,3248.5,3247.9,5.37]
[1736679003584,2.75087019,3248.5,3247.9,5.37]
[1736679003763,2.75087019,3248.5,3247.8,0.445143]
[1736679003764,0.0075,3248.2,3247.5,3.0]
[1736679003963,0.0075,3248.0,3247.5,3.0]
[1736679004194,0.0075,3248.0,3247.6,0.4048368]
[1736679004380,0.13064278,3247.9,3247.6,0.4048368]
[1736679005485,0.5575,3247.8,3247.6,0.0293468]
[1736679005807,0.5575,3247.6,3247.2,0.7549]
[1736679006015,0.5575,3247.6,3247.2,0.78425847]
[1736679006309,0.0075,3247.6,3247.2,0.78425847]
[1736679006695,0.0075,3247.7,3247.1,5.37]
[1736679006864,0.0075,3247.5,3247.1,0.6781238]
[1736679007067,0.13043743,3247.4,3247.1,0.6781238]
[1736679007319,0.0075,3247.5,3247.1,0.6781238]
[1736679007606,0.13043294,3247.4,3247.1,0.6781238]
[1736679007966,0.0075,3247.5,3247.1,0.6781238]
[1736679008362,0.13043525,3247.4,3247.1,0.6781238]
[1736679008813,0.0075,3247.5,3247.1,0.6781238]
[1736679009107,0.13043525,3247.4,3247.1,0.6781238]
[1736679009403,0.0075,3247.7,3247.2,0.02935866]
[1736679009764,0.0075,3247.5,3247.2,0.02935866]
[1736679010109,0.13043525,3247.4,3247.1,0.6781238]
[1736679010604,0.13043525,3247.4,3247.2,0.02935867]
[1736679011404,0.13043525,3247.4,3247.1,0.6781238]
[1736679013199,0.13043525,3247.4,3246.9,0.7893]
[1736679015710,0.55,3247.4,3246.9,0.7893]
[1736679015864,0.13043263,3247.3,3246.9,0.7893]
[1736679017709,0.13043263,3247.3,3247.0,3.02936011]
[1736679017872,0.55,3247.4,3247.0,3.02936011]
[1736679018199,0.13033378,3247.3,3247.1,0.59745601]
[1736679019911,0.55,3247.2,3246.8,3.60180473]
[1736679020078,0.12993863,3247.1,3246.8,3.60180473]
[1736679021019,0.12993863,3247.1,3246.9,0.02936475]
[1736679021727,0.0075,3247.3,3246.9,0.02936475]
[1736679025015,0.55,3247.4,3246.9,0.02936475]
[1736679025230,0.8146,3247.7,3247.0,1.34061295]
[1736679025429,0.0075,3247.6,3247.1,0.02935882]
[1736679025662,0.55,3247.5,3247.1,0.02935882]
[1736679026157,0.12997808,3247.4,3247.1,0.02935895]
[1736679026559,0.5575,3247.6,3247.1,0.02935895]
[1736679027059,5.31,3248.1,3247.1,0.02935895]
[1736679027060,0.12998518,3247.5,3247.4,2.15557]
[1736679027214,0.12998518,3247.5,3247.4,2.99421842]
[1736679027411,0.0075,3248.0,3247.4,0.83864842]
[1736679027816,0.12946836,3247.9,3247.4,0.83864842]
[1736679028529,0.12946836,3247.9,3247.4,0.8093]
[1736679028781,0.12946836,3247.9,3247.5,0.296491]
[1736679029281,0.12946836,3247.9,3247.6,0.02934752]
[1736679030251,0.5575,3248.1,3247.6,0.02934752]
[1736679030638,0.55,3247.9,3247.6,0.02934752]
[1736679031038,0.12966021,3247.8,3247.5,0.296491]
[1736679031286,0.12966021,3247.8,3247.6,0.02934795]
[1736679033978,0.12966021,3247.8,3247.5,0.296491]
[1736679034390,0.12966021,3247.8,3247.6,0.02934814]
[1736679036086,0.1593432,3247.7,3247.6,0.02934814]
[1736679036291,0.1593432,3247.7,3247.6,0.83864814]
[1736679036477,0.7596,3248.5,3247.7,0.8093]
[1736679036849,0.15943575,3248.4,3247.7,0.8093]
[1736679037249,0.15943575,3248.4,3247.8,0.02933676]
[1736679037789,0.15943575,3248.4,3247.7,3.8093]
[1736679040737,0.55,3248.3,3247.7,3.8093]
[1736679040939,0.15952053,3248.2,3247.7,5.05414023]
[1736679041143,0.55,3248.3,3247.7,5.05414023]
[1736679041298,0.15952053,3248.2,3247.7,5.05414023]
[1736679041497,0.55,3248.3,3247.7,5.05414023]
[1736679041698,0.15952053,3248.2,3247.7,5.05414023]
[1736679041927,0.55,3248.3,3247.8,1.07975721]
[1736679042135,0.15952053,3248.2,3247.8,1.07975721]
[1736679042415,0.55,3248.3,3247.8,1.07975721]
[1736679042751,0.15952053,3248.2,3247.8,1.07975721]
[1736679042958,0.55,3248.3,3247.8,1.07975721]
[1736679043111,0.15952053,3248.2,3247.9,0.48890572]
[1736679043312,0.55,3248.3,3247.9,0.48890572]
[1736679043650,0.15952053,3248.2,3247.9,0.48890572]
[1736679043957,0.55,3248.3,3247.9,0.48890572]
[1736679044140,0.15952053,3248.2,3247.9,0.48890572]
[1736679044341,0.55,3248.3,3248.0,0.15686629]
[1736679044643,0.15952053,3248.2,3248.0,0.15686629]
[1736679045155,0.55,3248.3,3248.0,0.15686629]
[1736679045328,0.15952053,3248.2,3248.0,0.15686629]
[1736679045679,0.55,3248.3,3248.0,0.15686629]
[1736679045827,0.15951433,3248.1,3248.0,0.15686629]
[1736679046014,0.5575,3248.4,3248.0,0.15686629]
[1736679046214,0.15951433,3248.1,3248.0,0.15686629]
[1736679046454,0.5575,3248.4,3248.0,0.15686629]
[1736679046649,0.15951433,3248.1,3248.0,0.15686629]
[1736679046841,0.5575,3248.4,3248.0,0.15686629]
[1736679047313,0.15952673,3248.3,3248.0,0.15686629]
[1736679052244,0.15952673,3248.3,3247.9,0.48890572]
[1736679052245,0.55,3248.2,3247.9,0.48890572]
[1736679052668,0.15955366,3248.1,3247.9,0.48890572]
[1736679054574,0.15955366,3248.1,3248.0,0.80724144]
[1736679054735,0.5575,3248.7,3248.0,0.80724144]
[1736679054937,0.5575,3248.5,3248.0,0.80724144]
[1736679055150,0.15957226,3248.4,3248.0,0.80724144]
[1736679055646,0.15957226,3248.4,3248.0,0.7779]
[1736679055842,0.15957226,3248.4,3248.1,0.02933693]
[1736679056169,0.15957226,3248.4,3248.0,1.22808129]
[1736679065590,0.15957226,3248.4,3248.0,0.7779]
[1736679070397,0.55,3248.3,3248.0,0.7779]
[1736679070769,0.15973598,3248.2,3247.9,0.48890572]
[1736679071010,0.55,3248.3,3247.9,0.48890572]
[1736679071170,0.15973179,3248.1,3247.9,0.48890572]
[1736679071385,0.55,3248.3,3248.0,0.23192629]
[1736679071594,0.15973799,3248.2,3247.8,1.83035721]
[1736679071789,0.55,3248.3,3247.8,1.83035721]
[1736679072015,0.15973799,3248.2,3247.8,1.83035721]
[1736679072423,0.0075,3248.2,3247.6,5.37]
[1736679072603,0.55,3247.9,3247.6,5.37]
[1736679073233,0.5575,3247.7,3247.2,6.1206]
[1736679073510,0.5575,3247.7,3247.2,7.35091332]
[1736679073811,0.55,3247.5,3247.2,8.08600465]
[1736679073970,0.5575,3247.8,3247.2,8.08600465]
[1736679074170,0.0075,3247.6,3247.2,8.08600465]
[1736679075072,0.55,3247.8,3247.2,8.08600465]
[1736679075437,0.0075,3247.6,3247.2,8.08600465]
[1736679075597,0.0075,3247.6,3247.3,0.80860046]
[1736679076009,0.55,3247.8,3247.3,0.80860046]
[1736679076390,0.0075,3247.6,3247.3,0.80860046]
[1736679077530,0.0075,3247.7,3247.3,0.80860046]
[1736679077732,0.55,3247.5,3247.3,0.80860046]
[1736679077936,0.15975362,3247.4,3247.2,2.0102714]
[1736679078235,0.0075,3247.8,3247.2,2.0102714]
[1736679078526,0.15977223,3247.7,3247.2,2.0102714]
[1736679078732,0.5575,3247.6,3247.2,2.0102714]
[1736679078940,0.0075,3247.6,3247.2,2.0102714]
[1736679080312,0.0075,3247.8,3247.3,0.50102714]
[1736679080836,0.5575,3247.6,3247.3,0.50102714]
[1736679081241,0.15976184,3247.5,3247.3,0.50102714]
[1736679081851,0.7883,3248.0,3247.3,0.50102714]
[1736679081999,0.7883,3248.0,3247.4,0.02935412]
[1736679082000,0.5575,3247.9,3247.4,0.02935412]
[1736679082200,0.15978246,3247.8,3247.4,0.02935412]
[1736679084338,0.55,3247.7,3247.4,0.49605258]
[1736679084536,0.15930762,3247.6,3247.4,0.49605258]
[1736679084764,0.15930762,3247.6,3247.4,0.46669846]
[1736679085068,0.15930142,3247.5,3247.4,0.46669846]
[1736679085267,0.15930142,3247.5,3247.4,0.49605095]
[1736679085474,0.5575,3247.9,3247.4,0.49605095]
[1736679085764,0.15930142,3247.5,3247.4,0.46669846]
[1736679085919,0.5575,3247.9,3247.3,0.50102714]
[1736679086119,0.15929928,3247.5,3247.2,4.13660332]
[1736679086373,0.15930536,3247.4,3247.2,4.13660332]
[1736679086871,0.5575,3247.9,3247.2,4.13660332]
[1736679087224,0.55,3247.7,3247.2,4.13660332]
[1736679087669,0.15931968,3247.6,3247.2,4.13660332]
[1736679087876,0.15931968,3247.6,3247.3,0.71366033]
[1736679088039,0.5575,3247.9,3247.3,0.71366033]
[1736679088239,0.15931347,3247.5,3247.3,0.71366033]
[1736679088438,0.5575,3247.9,3247.3,0.71366033]
[1736679088666,0.15930928,3247.4,3247.3,0.71366033]
[1736679088877,0.5575,3247.9,3247.3,0.71366033]
[1736679089020,0.5575,3247.9,3247.4,0.02935236]
[1736679089223,0.5575,3247.9,3247.3,0.71366033]
[1736679089224,0.55,3247.7,3247.3,0.71366033]
[1736679089425,0.55,3247.7,3247.4,0.48502636]
[1736679089625,0.15932371,3247.6,3247.4,0.48502636]
[1736679089925,0.5575,3247.9,3247.4,0.48502636]
[1736679090259,0.55,3247.7,3247.3,0.71366033]
[1736679090578,0.15932572,3247.6,3247.3,0.71366033]
[1736679090725,0.5575,3247.9,3247.3,0.71366033]
[1736679090925,0.5575,3247.9,3247.2,4.13660332]
[1736679091159,0.55,3247.7,3247.2,4.13660332]
[1736679091577,0.15932572,3247.6,3247.2,4.13660332]
[1736679093173,0.15932572,3247.6,3247.3,0.02935339]
[1736679093388,0.15932572,3247.6,3247.2,4.13660332]
[1736679093576,0.15932572,3247.6,3247.3,0.71366033]
[1736679093745,0.15932572,3247.6,3247.3,0.74301363]
[1736679093946,0.15932572,3247.6,3247.3,0.71366033]
[1736679094128,0.15932572,3247.6,3247.4,0.02935332]
[1736679095192,0.15932572,3247.6,3247.3,0.71366033]
[1736679095473,0.15932572,3247.6,3247.4,0.02935299]
[1736679095984,0.15932572,3247.6,3247.3,0.71366033]
[1736679096631,0.55,3247.8,3247.3,0.71366033]
[1736679096866,0.15923753,3247.5,3247.2,0.7506]
[1736679097023,0.55,3247.8,3247.2,0.7506]
[1736679097232,0.15921934,3247.4,3247.2,0.7506]
[1736679097566,0.15921314,3247.3,3247.2,0.7506]
[1736679097747,0.55,3247.8,3247.2,0.7506]
[1736679097949,0.15923795,3247.7,3247.2,0.7506]
[1736679098129,0.15923795,3247.7,3247.2,1.52590931]
[1736679099875,0.5575,3247.9,3247.2,1.52590931]
[1736679100030,0.15923175,3247.6,3247.2,1.52590931]
[1736679100234,0.5575,3247.9,3247.2,1.52590931]
[1736679100473,0.15922554,3247.5,3247.2,1.52590931]
[1736679100679,0.5575,3247.9,3247.3,0.66816693]
[1736679100831,0.15921934,3247.4,3247.2,0.7506]
[1736679101052,0.5575,3247.9,3247.2,0.7506]
[1736679101256,0.15921314,3247.3,3247.2,0.7506]
[1736679101481,0.5575,3247.9,3247.2,0.7506]
[1736679101653,0.15921314,3247.3,3247.2,0.7506]
[1736679101854,0.5575,3247.9,3247.2,1.52590931]
[1736679102081,0.15921314,3247.3,3247.2,1.52590931]
[1736679102291,0.5575,3247.9,3247.2,1.52590931]
[1736679102495,0.15921112,3247.3,3247.2,1.52590931]
[1736679102676,0.5575,3247.9,3247.2,1.52590931]
[1736679102879,0.15921314,3247.3,3247.2,1.52590931]
[1736679103091,0.5575,3247.9,3247.2,1.52590931]
[1736679103267,0.15921314,3247.3,3247.2,1.52590931]
[1736679103461,0.5575,3247.9,3247.2,1.52590931]
[1736679103692,0.15921314,3247.3,3247.2,1.52590931]
[1736679103896,0.5575,3247.9,3247.2,1.52590931]
[1736679104091,0.15921314,3247.3,3247.2,1.52590931]
[1736679104268,0.5575,3247.9,3247.2,1.52590931]
[1736679104593,0.15921314,3247.3,3247.2,0.7506]
[1736679105089,0.5575,3247.9,3247.2,0.7506]
[1736679105548,0.5575,3247.9,3247.3,0.02935266]
[1736679105752,0.15924415,3247.8,3247.2,0.7506]
[1736679113040,0.55,3247.7,3247.2,0.7506]
[1736679113214,0.55,3247.7,3247.0,0.7973]
[1736679113215,0.55,3247.5,3247.0,0.7973]
[1736679113589,0.8044,3247.6,3246.8,6.1673]
[1736679113590,0.55,3247.3,3246.8,6.1673]
[1736679113724,0.55,3247.3,3246.9,3.0]
[1736679113930,0.15901029,3247.2,3246.9,3.0]
[1736679114230,0.5575,3247.5,3246.9,3.0]
[1736679114433,0.55,3247.3,3246.9,3.0]
[1736679114847,0.15901029,3247.2,3246.9,3.0]
[1736679115047,0.5575,3247.5,3246.9,4.08731928]
[1736679115575,0.55,3247.3,3246.9,4.08731928]
[1736679115976,0.15901018,3247.2,3246.9,4.08731928]
[1736679116476,0.15900599,3247.1,3246.9,4.08731928]
[1736679116833,0.5575,3247.5,3246.9,4.08731928]
[1736679117036,0.15899978,3247.0,3246.9,3.0]
[1736679117277,0.5575,3247.5,3246.9,3.0]
[1736679117478,0.1590018,3247.0,3246.9,3.0]
[1736679118151,0.5575,3247.5,3246.9,3.0]
[1736679118393,0.15899978,3247.0,3246.9,3.0]
[1736679118685,0.15900381,3247.0,3246.9,5.99700495]
[1736679118894,0.5575,3247.5,3246.9,5.967642]
[1736679119091,0.5575,3247.5,3247.0,0.02936264]
[1736679119299,0.55,3247.3,3247.0,0.02936264]
[1736679119792,0.15882773,3247.2,3247.0,0.02936264]
[1736679119962,0.55,3247.3,3247.1,0.38411146]
[1736679120170,0.15882773,3247.2,3247.1,0.38411146]
[1736679120466,0.5575,3247.5,3247.1,0.38411146]
[1736679120649,0.5575,3247.5,3247.0,0.02936264]
[1736679120851,0.55,3247.3,3247.0,0.02936264]
[1736679121077,0.15884013,3247.4,3247.0,0.02936264]
[1736679121282,0.15882773,3247.2,3247.1,0.7811]
[1736679121594,0.5575,3247.8,3247.1,0.7811]
[1736679121749,0.5575,3247.8,3247.2,0.02935816]
[1736679121951,0.55,3247.6,3247.2,0.02935816]
[1736679122382,0.15885037,3247.5,3247.1,0.7811]
[1736679122576,0.15885037,3247.5,3247.1,1.4559672]
[1736679122752,0.15885037,3247.5,3247.2,0.0293582]
[1736679122952,0.15885037,3247.5,3247.1,1.4559672]
[1736679123699,0.15885037,3247.5,3247.2,0.0293582]
[1736679124406,0.15885037,3247.5,3247.2,3.41537152]
[1736679124705,0.5575,3248.1,3247.3,1.19012387]
[1736679124895,0.5575,3248.1,3247.4,0.02935291]
[1736679126293,0.5575,3248.1,3247.4,0.63634067]
[1736679126795,2.7126,3248.1,3247.4,0.02935291]
[1736679128690,0.5575,3248.1,3247.5,0.823]
[1736679128877,0.5575,3248.1,3247.6,0.23761349]
[1736679134130,0.5575,3248.2,3247.6,0.23761349]
[1736679137429,0.15457507,3248.1,3247.6,0.23761349]
[1736679137602,0.55,3248.0,3247.6,0.23761349]
[1736679137805,0.15456468,3247.9,3247.6,0.23761349]
[1736679140990,0.55,3248.1,3247.6,0.23761349]
[1736679141206,0.55,3248.1,3247.6,0.02934687]
[1736679141632,0.15449715,3248.0,3247.6,0.02934687]
[1736679143646,0.70449715,3248.0,3247.5,0.823]
[1736679143942,2.15531,3247.8,3247.5,0.823]
[1736679144087,0.55,3247.7,3247.2,0.7612]
[1736679144291,2.85984855,3247.7,3247.2,0.7612]
[1736679144687,2.15544,3247.6,3247.2,0.7612]
[1736679144942,2.96434,3247.6,3247.1,3.0]
[1736679145143,0.0075,3247.4,3247.0,0.32178792]
[1736679145653,0.55,3247.2,3246.8,0.60838002]
[1736679145787,0.15417708,3247.1,3246.8,0.60838002]
[1736679146592,2.15565,3247.3,3246.8,0.60838002]
[1736679146788,0.15419245,3247.2,3246.8,0.60838002]
[1736679146992,2.15565,3247.3,3246.8,0.60838002]
[1736679147192,0.15419447,3247.2,3246.8,0.60838002]
[1736679147440,2.15565,3247.3,3246.8,0.60838002]
[1736679147637,0.15419447,3247.2,3246.8,0.60838002]
[1736679147809,2.15565,3247.3,3246.7,0.7612]
[1736679148011,0.15419447,3247.2,3246.7,0.7612]
[1736679148258,0.15419447,3247.2,3246.7,1.49735133]
[1736679149697,0.7898,3247.1,3246.7,1.49735133]
[1736679149997,0.15418407,3247.0,3246.7,1.49735133]
[1736679150534,0.15418407,3247.0,3246.6,5.37]
[1736679152818,0.15418407,3247.0,3246.7,0.7782]
[1736679153015,0.7973,3247.4,3246.7,0.80756949]
[1736679153240,0.0075,3247.2,3246.7,0.80756949]
[1736679155050,0.04599607,3247.3,3246.7,0.7782]
[1736679155218,0.15360643,3247.2,3246.7,0.7782]
[1736679155418,0.15360643,3247.2,3246.7,1.57862862]
[1736679155954,0.15360643,3247.2,3246.7,0.7782]
[1736679157744,0.15360643,3247.2,3246.7,0.8075694]
[1736679158253,0.15360643,3247.2,3246.7,0.7782]
[1736679158445,0.15360643,3247.2,3246.7,0.80756942]
[1736679160153,0.15360643,3247.2,3246.7,0.7782]
[1736679160617,0.15360643,3247.2,3246.7,1.34162862]
[1736679160813,0.15360643,3247.2,3246.7,0.56342862]
[1736679167331,0.15360643,3247.2,3246.8,1.25968292]
[1736679167733,0.7898,3247.4,3246.8,1.25968292]
[1736679167934,0.14864771,3247.1,3246.8,1.25968292]
[1736679168257,0.7898,3247.4,3246.8,1.25968292]
[1736679168445,0.14866012,3247.3,3246.8,1.23031332]
[1736679168634,0.14866012,3247.3,3246.9,0.41804433]
[1736679169673,0.14866012,3247.3,3246.7,0.7941]
[1736679170077,0.14866012,3247.3,3246.6,3.0]
[1736679170746,0.7585,3247.2,3246.6,3.0]
[1736679171183,0.14864771,3247.1,3246.6,3.0]
[1736679171678,0.7585,3247.2,3246.6,3.0]
[1736679171875,0.14864771,3247.1,3246.7,0.57819229]
[1736679172033,0.7585,3247.2,3246.7,0.57819229]
[1736679172239,0.14864771,3247.1,3246.7,0.57819229]
[1736679172539,0.7585,3247.2,3246.7,0.57819229]
[1736679172974,0.14864771,3247.1,3246.7,0.57819229]
[1736679173181,0.14864771,3247.1,3246.8,0.35781923]
[1736679173385,0.7585,3247.2,3246.8,0.35781923]
[1736679173542,0.1486415,3247.0,3246.8,0.35781923]
[1736679173881,0.1486353,3246.9,3246.8,0.35781923]
[1736679174282,0.7585,3247.2,3246.8,0.35781923]
[1736679174456,0.1486353,3246.9,3246.8,0.35781923]
[1736679174659,0.7585,3247.2,3246.8,0.35781923]
[1736679174859,0.14864771,3247.1,3246.8,0.35781923]
[1736679180585,0.7585,3247.2,3246.8,0.35781923]
[1736679180988,0.1485926,3247.1,3246.8,0.35781923]
[1736679181489,0.7585,3247.2,3246.8,0.35781923]
[1736679181862,0.14859451,3247.1,3246.8,0.35781923]
[1736679183955,0.14859451,3247.1,3246.5,0.62577288]
[1736679186604,0.14859451,3247.1,3246.5,1.8560862]
[1736679187295,0.7585,3247.2,3246.5,1.8560862]
[1736679190588,0.7585,3247.2,3246.6,3.7651]
[1736679193726,0.1481448,3247.1,3246.6,3.7651]
[1736679194029,0.1481448,3247.1,3246.7,0.56211862]
[1736679196428,0.1481448,3247.1,3246.8,0.7651]
[1736679196631,0.1481448,3247.1,3246.9,1.25968207]
[1736679196827,0.25,3249.0,3247.3,0.7651]
[1736679196828,0.8332,3248.1,3247.3,0.7651]
[1736679197048,0.8332,3248.1,3247.1,3.0]
[1736679197049,0.8332,3248.4,3247.6,0.7651]
[1736679197205,0.14291303,3248.0,3247.6,0.79444859]
[1736679197554,0.14290254,3247.9,3247.6,1.15833608]
[1736679197893,0.0075,3248.3,3247.6,1.15833608]
[1736679198086,0.0075,3248.1,3247.6,0.79444859]
[1736679198341,0.14290874,3248.0,3247.6,0.79444859]
[1736679199593,0.14290874,3248.0,3247.6,0.7651]
[1736679199833,0.0075,3248.3,3247.6,0.7651]
[1736679200133,0.0075,3248.1,3247.6,0.7651]
[1736679200937,2.16247,3248.3,3247.6,0.7651]
[1736679201334,0.0075,3248.1,3247.6,0.7651]
[1736679201829,0.1433232,3248.0,3247.6,0.7651]
[1736679204674,0.1433232,3248.0,3247.7,0.02934869]
[1736679204835,0.8332,3248.4,3247.7,0.02934869]
[1736679205170,0.0075,3248.3,3247.7,0.02934869]
[1736679205322,0.1508418,3248.3,3247.7,0.02934869]
[1736679206278,0.1508418,3248.3,3247.6,0.7651]
[1736679206473,0.1508418,3248.3,3247.7,0.592059]
[1736679210284,2.15504,3248.2,3247.7,0.592059]
[1736679210577,2.15525,3247.9,3247.5,3.0]
[1736679210778,2.19373936,3247.9,3247.5,3.0]
[1736679210982,0.14351424,3247.8,3247.5,3.0]
[1736679211766,0.14351424,3247.8,3247.4,8.37]
[1736679212096,0.14351424,3247.8,3247.5,3.0]
[1736679212248,0.14351424,3247.8,3247.4,8.37]
[1736679212452,0.14351424,3247.8,3247.5,3.0]
[1736679215353,0.14351424,3247.8,3247.3,3.0]
[1736679215551,0.14351424,3247.8,3247.7,2.15537]
[1736679215751,0.7713,3248.7,3247.8,0.7972]
[1736679215999,0.7713,3248.7,3247.5,3.0]
[1736679216000,0.7713,3248.7,3248.1,0.7972]
[1736679216161,0.1429396,3248.6,3248.1,0.82653604]
[1736679216784,0.1429396,3248.6,3248.1,0.7972]
[1736679216974,0.0075,3248.8,3248.1,0.7972]
[1736679217176,0.1429334,3248.5,3248.1,0.7972]
[1736679217375,0.0075,3248.8,3248.1,0.7972]
[1736679217576,0.14356594,3248.4,3248.1,0.7972]
[1736679217785,0.0075,3248.8,3248.1,0.7972]
[1736679217989,2.19304941,3248.9,3248.2,2.15503]
[1736679217990,0.14355974,3248.3,3248.2,2.15503]
[1736679218155,0.7713,3249.3,3248.3,3.7972]
[1736679218358,0.7713,3249.3,3248.5,0.7972]
[1736679218359,0.0384741,3249.2,3248.5,0.7972]
[1736679218587,0.0075,3249.1,3248.5,0.7972]
[1736679219383,0.0075,3249.1,3248.5,2.95203]
[1736679219619,0.0075,3249.1,3248.5,1.929403]
[1736679220011,0.0075,3249.1,3248.5,4.084233]
[1736679221097,0.0075,3249.1,3248.5,1.929403]
[1736679223192,0.0075,3249.1,3248.5,0.7972]
[1736679223394,0.0075,3248.9,3248.3,5.37]
[1736679223714,0.14423123,3248.8,3248.3,5.37]
[1736679224401,0.14423123,3248.8,3248.2,3.7972]
[1736679227131,0.14423123,3248.8,3248.3,0.02933166]
[1736679227343,0.14423123,3248.8,3248.4,0.38265317]
[1736679230071,0.14423123,3248.8,3248.5,0.85443167]
[1736679230239,0.14423123,3248.8,3248.5,3.00926167]
[1736679230438,0.04597364,3249.2,3248.5,3.00926167]
[1736679230774,0.04597364,3249.2,3248.5,2.97993]
[1736679230929,0.144258,3249.1,3248.6,0.297993]
[1736679231128,0.144258,3249.1,3248.6,0.32731825]
[1736679232066,0.144258,3249.1,3248.6,0.297993]
[1736679232271,0.83497249,3249.3,3248.6,0.297993]
[1736679232765,0.14430729,3249.2,3248.6,0.297993]
[1736679232926,0.14430729,3249.2,3248.7,0.38845853]
[1736679241984,0.14430729,3249.2,3248.5,0.8251]
[1736679246488,0.14430729,3249.2,3248.6,0.7533]
[1736679248305,0.0075,3249.3,3248.6,0.7533]
[1736679248601,0.14440152,3249.2,3248.6,0.7533]
[1736679256583,0.14440152,3249.2,3248.7,0.02932275]
[1736679257476,0.14440152,3249.2,3248.7,0.32306802]
[1736679257658,0.14440152,3249.2,3248.7,0.29374527]
[1736679258045,0.14440152,3249.2,3248.7,0.32306807]
[1736679258444,0.14440152,3249.2,3248.7,0.29374527]
[1736679258946,0.14440152,3249.2,3248.7,0.32306808]
[1736679259162,0.14440152,3249.2,3248.8,2.01372998]
[1736679259372,0.14440152,3249.2,3249.0,0.7839]
[1736679259880,0.0075,3249.5,3249.0,0.7839]
[1736679260081,0.13990026,3249.1,3249.0,0.7839]
[1736679260386,2.16168,3249.5,3249.0,0.7839]
[1736679260533,0.0075,3249.0,3248.5,0.7839]
[1736679260732,0.13988787,3248.9,3248.5,1.04781866]
[1736679261382,2.16219,3248.8,3248.2,0.7839]
[1736679261584,0.0384791,3248.7,3248.3,0.32173652]
[1736679261787,0.0075,3248.6,3248.3,0.32173652]
[1736679261996,2.20967926,3248.6,3248.3,0.32173652]
[1736679262177,0.0075,3248.4,3248.3,0.32173652]
[1736679262505,2.1624,3248.4,3247.9,0.7839]
[1736679262638,0.0075,3248.2,3248.0,0.32173319]
[1736679262970,0.13987522,3248.1,3248.0,0.32173319]
[1736679265181,0.17836084,3248.1,3248.0,0.32173319]
[1736679266684,0.13987522,3248.1,3248.0,0.32173319]
[1736679274538,2.98398,3248.6,3248.0,0.32173319]
[1736679274850,0.0075,3248.4,3248.0,0.32173319]
[1736679275351,0.13418038,3248.3,3248.0,0.32173319]
[1736679295362,0.13418038,3248.3,3248.1,0.8002]
[1736679296566,0.13418038,3248.3,3248.1,2.9553]
[1736679296732,0.13418038,3248.3,3248.2,1.28321441]
[1736679296931,0.0075,3248.8,3248.2,1.28321441]
[1736679297672,0.1341515,3248.7,3248.2,1.28321441]
[1736679299236,0.1341515,3248.7,3248.3,0.8002]
[1736679299436,0.0075,3248.9,3248.3,0.8002]
[1736679299849,0.13414531,3248.6,3248.3,0.8002]
[1736679300050,0.0075,3248.9,3248.3,0.8002]
[1736679300279,0.13413911,3248.5,3248.3,0.8002]
[1736679300574,0.0075,3248.9,3248.3,0.8002]
[1736679300792,0.7649,3249.1,3248.3,1.17620494]
[1736679301078,2.15433,3249.3,3248.4,2.05991404]
[1736679301244,0.13417009,3249.0,3248.4,2.05991404]
[1736679301445,0.0075,3249.2,3248.5,0.8002]
[1736679301775,0.7649,3249.0,3248.5,0.8002]
[1736679301975,0.1417809,3248.9,3248.2,0.8002]
[1736679302136,0.18025741,3248.9,3248.2,2.08793844]
[1736679303037,0.0075,3248.8,3248.2,0.8002]
[1736679303382,0.14176261,3248.8,3248.2,0.8002]
[1736679304683,0.0075,3248.6,3248.2,0.8002]
[1736679304883,0.04598029,3248.6,3248.2,0.8002]
[1736679305203,0.13425208,3248.5,3248.2,0.8002]
[1736679305900,0.0075,3248.4,3248.2,0.8002]
[1736679306047,0.04598242,3248.4,3248.1,0.32173503]
[1736679306247,0.13424372,3248.3,3248.1,0.32173503]
[1736679306749,0.0075,3248.2,3248.1,0.32173503]
[1736679307059,0.14162464,3248.2,3248.1,0.32173503]
[1736679308490,0.14162464,3248.2,3248.1,1.11683503]
[1736679310170,0.13412464,3248.2,3248.1,1.11683503]
[1736679310370,0.13412464,3248.2,3248.1,6.75150506]
[1736679310578,1.99157935,3249.3,3248.5,0.7951]
[1736679310874,0.18014422,3249.2,3248.5,0.7951]
[1736679311411,0.14166813,3249.2,3248.5,0.7951]
[1736679312620,0.14166813,3249.2,3248.5,1.09303295]
[1736679313777,0.14166813,3249.2,3248.5,0.29793295]
[1736679313980,0.14166813,3249.2,3248.6,0.7951]
[1736679319792,2.29603813,3249.2,3248.6,0.7951]
[1736679328662,0.14166813,3249.2,3248.6,0.7951]
[1736679329131,2.29603813,3249.2,3248.6,0.7951]
[1736679329661,0.0075,3249.0,3248.6,0.7951]